[Event "NJSK 2022 Jeugd A"]
[Site "Almelo, Netherlands"]
[Date "2022.05.07"]
[Round "7.1"]
[White "Van Kuijk, Vadim"]
[Black "Roebers, Eline"]
[Result "0-1"]
[TimeControl "90min/40moves + 30min + 30sec/move"]
[WhiteElo "1898"]
[BlackElo "2369"]

1. e4 {[%clk 01:30:30]} {[%emt 16:05:07]} c5 {[%clk 01:30:54]} {[%emt
00:00:18]} 2. Nf3 {[%clk 01:31:15]} {[%emt 00:00:13]} e6 {[%clk 01:31:19]}
{[%emt 00:00:05]} 3. d4 {[%clk 01:31:39]} {[%emt 00:00:06]} cxd4 {[%clk
01:31:46]} {[%emt 00:00:03]} 4. Nxd4 {[%clk 01:32:05]} {[%emt 00:00:04]} Nc6
{[%clk 01:32:13]} {[%emt 00:00:03]} 5. Nc3 {[%clk 01:32:23]} {[%emt 00:00:12]}
Nf6 {[%clk 01:32:40]} {[%emt 00:00:04]} 6. Ndb5 {[%clk 01:32:02]} {[%emt
00:00:50]} Bc5 {[%clk 01:31:18]} {[%emt 00:01:52]} 7. Bf4 {[%clk 01:25:44]}
{[%emt 00:06:47]} O-O {[%clk 01:31:21]} {[%emt 00:00:29]} 8. Bc7 {[%clk
01:15:42]} {[%emt 00:10:31]} Qe7 {[%clk 01:31:46]} {[%emt 00:00:06]} 9. Bd6
{[%clk 01:16:02]} {[%emt 00:00:09]} Bxd6 {[%clk 01:32:12]} {[%emt 00:00:04]} 10.
Nxd6 {[%clk 01:15:52]} {[%emt 00:00:40]} a6 {[%clk 01:17:44]} {[%emt 00:14:59]}
11. Be2 {[%clk 01:09:12]} {[%emt 00:07:08]} Ne8 {[%clk 01:15:41]} {[%emt
00:02:35]} 12. Nxe8 {[%clk 01:07:00]} {[%emt 00:02:41]} Rxe8 {[%clk 01:16:07]}
{[%emt 00:00:04]} 13. O-O {[%clk 01:06:22]} {[%emt 00:01:08]} b5 {[%clk
01:12:36]} {[%emt 00:04:01]} 14. Qd2 {[%clk 01:00:49]} {[%emt 00:06:03]} Bb7
{[%clk 01:09:55]} {[%emt 00:03:11]} 15. Rad1 {[%clk 00:53:53]} {[%emt
00:07:25]} Red8 {[%clk 01:07:48]} {[%emt 00:02:38]} 16. a3 {[%clk 00:51:11]}
{[%emt 00:03:12]} Rac8 {[%clk 01:03:13]} {[%emt 00:05:05]} 17. Qd6 {[%clk
00:41:03]} {[%emt 00:10:38]} Kf8 {[%clk 01:01:08]} {[%emt 00:02:35]} 18. f4
{[%clk 00:37:50]} {[%emt 00:03:43]} Na5 {[%clk 00:43:57]} {[%emt 00:17:42]} 19.
Kh1 {[%clk 00:18:22]} {[%emt 00:19:58]} Nc4 {[%clk 00:38:29]} {[%emt 00:05:57]}
20. Bxc4 {[%clk 00:17:39]} {[%emt 00:01:13]} Rxc4 {[%clk 00:38:22]} {[%emt
00:00:37]} 21. Qb6 {[%clk 00:13:05]} {[%emt 00:05:04]} Bc6 {[%clk 00:29:40]}
{[%emt 00:09:12]} 22. Qe3 {[%clk 00:10:54]} {[%emt 00:02:41]} a5 {[%clk
00:22:29]} {[%emt 00:07:41]} 23. f5 {[%clk 00:05:51]} {[%emt 00:05:33]} exf5
{[%clk 00:15:32]} {[%emt 00:07:26]} 24. Qh3 {[%clk 00:03:41]} {[%emt 00:02:41]}
Kg8 {[%clk 00:06:55]} {[%emt 00:09:07]} 25. exf5 {[%clk 00:03:24]} {[%emt
00:00:47]} Qg5 {[%clk 00:04:21]} {[%emt 00:03:04]} 26. Rf2 {[%clk 00:01:28]}
{[%emt 00:02:26]} Re8 {[%clk 00:04:02]} {[%emt 00:00:49]} 27. b3 {[%clk
00:00:55]} {[%emt 00:01:03]} Re3 {[%clk 00:03:07]} {[%emt 00:01:25]} 28. Re2
{[%clk 00:00:33]} {[%emt 00:00:52]} Rcxc3 {[%clk 00:02:58]} {[%emt 00:00:39]}
29. Rde1 {[%clk 00:00:41]} {[%emt 00:00:22]} Rxe2 {[%clk 00:03:20]} {[%emt
00:00:09]} 30. Rxe2 {[%clk 00:01:04]} {[%emt 00:00:06]} Qc1+ {[%clk 00:03:47]}
{[%emt 00:00:03]} 31. Re1 {[%clk 00:01:33]} {[%emt 00:00:02]} Qxe1# {[%clk
00:04:10]} {[%emt 00:00:05]} 0-1

[Event "NJSK 2022 Jeugd A"]
[Site "Almelo, Netherlands"]
[Date "2022.05.07"]
[Round "7.2"]
[White "Albers, Sasa"]
[Black "Verheul, Job"]
[Result "1/2-1/2"]
[TimeControl "90min/40moves + 30min + 30sec/move"]
[WhiteElo "2117"]
[BlackElo "1707"]

1. e4 {[%clk 01:30:58]} c6 {[%clk 01:30:56]} {[%emt 00:00:05]} 2. Nf3 {[%clk
01:31:23]} {[%emt 00:00:05]} d5 {[%clk 01:31:20]} {[%emt 00:00:07]} 3. Nc3
{[%clk 01:31:50]} {[%emt 00:00:03]} Bg4 {[%clk 01:31:43]} {[%emt 00:00:07]} 4.
h3 {[%clk 01:32:16]} {[%emt 00:00:04]} Bxf3 {[%clk 01:32:03]} {[%emt 00:00:10]}
5. Qxf3 {[%clk 01:32:38]} {[%emt 00:00:06]} e6 {[%clk 01:32:27]} {[%emt
00:00:07]} 6. Be2 {[%clk 01:32:42]} {[%emt 00:00:26]} Bc5 {[%clk 01:32:23]}
{[%emt 00:00:35]} 7. O-O {[%clk 01:33:04]} {[%emt 00:00:06]} Nd7 {[%clk
01:32:33]} {[%emt 00:00:21]} 8. exd5 {[%clk 01:32:55]} {[%emt 00:00:40]} exd5
{[%clk 01:23:54]} {[%emt 00:09:08]} 9. Re1 {[%clk 01:32:39]} {[%emt 00:00:46]}
Ne7 {[%clk 01:19:35]} {[%emt 00:04:49]} 10. Na4 {[%clk 01:32:57]} {[%emt
00:00:12]} Bd6 {[%clk 01:08:22]} {[%emt 00:11:43]} 11. d4 {[%clk 01:33:20]}
{[%emt 00:00:07]} O-O {[%clk 01:05:09]} {[%emt 00:03:42]} 12. Bd3 {[%clk
01:32:48]} {[%emt 00:01:03]} Ng6 {[%clk 00:56:31]} {[%emt 00:09:08]} 13. Nc3
{[%clk 01:31:57]} {[%emt 00:01:21]} Qc7 {[%clk 00:49:21]} {[%emt 00:07:40]} 14.
Ne2 {[%clk 01:27:17]} {[%emt 00:05:10]} Rfe8 {[%clk 00:48:05]} {[%emt
00:01:46]} 15. Bd2 {[%clk 01:26:09]} {[%emt 00:01:37]} Nf6 {[%clk 00:43:54]}
{[%emt 00:04:42]} 16. g3 {[%clk 01:15:00]} {[%emt 00:11:38]} Ne4 {[%clk
00:39:54]} {[%emt 00:04:31]} 17. Be3 {[%clk 01:15:14]} {[%emt 00:00:17]} Re6
{[%clk 00:38:51]} {[%emt 00:01:33]} 18. c4 {[%clk 01:10:43]} {[%emt 00:05:00]}
Bb4 {[%clk 00:35:31]} {[%emt 00:03:50]} 19. cxd5 {[%clk 01:07:23]} {[%emt
00:03:50]} cxd5 {[%clk 00:34:03]} {[%emt 00:01:58]} 20. Rec1 {[%clk 01:03:15]}
{[%emt 00:04:39]} Qe7 {[%clk 00:34:19]} {[%emt 00:00:13]} 21. Nc3 {[%clk
01:00:53]} {[%emt 00:02:51]} Bxc3 {[%clk 00:22:08]} {[%emt 00:12:42]} 22. bxc3
{[%clk 01:01:17]} {[%emt 00:00:06]} Rf6 {[%clk 00:14:27]} {[%emt 00:08:10]} 23.
Qe2 {[%clk 00:58:32]} {[%emt 00:03:16]} Nxg3 {[%clk 00:05:41]} {[%emt
00:09:17]} 24. fxg3 {[%clk 00:58:13]} {[%emt 00:00:48]} Re6 {[%clk 00:06:06]}
{[%emt 00:00:05]} 25. Re1 {[%clk 00:56:38]} {[%emt 00:02:04]} Re8 {[%clk
00:06:30]} {[%emt 00:00:07]} 26. Bxg6 {[%clk 00:53:52]} {[%emt 00:03:15]} fxg6
{[%clk 00:04:54]} {[%emt 00:02:07]} 27. Kf2 {[%clk 00:47:16]} {[%emt 00:07:06]}
Rf8+ {[%clk 00:05:21]} {[%emt 00:00:03]} 28. Kg2 {[%clk 00:47:14]} {[%emt
00:00:32]} Re8 {[%clk 00:05:43]} {[%emt 00:00:09]} 29. Kf2 {[%clk 00:36:14]}
{[%emt 00:11:29]} Rf8+ {[%clk 00:06:05]} {[%emt 00:00:07]} 1/2-1/2

[Event "NJSK 2022 Jeugd A"]
[Site "Almelo, Netherlands"]
[Date "2022.05.07"]
[Round "7.3"]
[White "Elgersma, Onno"]
[Black "Van Foreest, Machteld"]
[Result "1-0"]
[TimeControl "90min/40moves + 30min + 30sec/move"]
[WhiteElo "2303"]
[BlackElo "2287"]

1. e4 {[%clk 01:30:57]} {[%emt 00:00:02]} c5 {[%clk 01:30:49]} {[%emt
00:00:12]} 2. Nf3 {[%clk 01:31:12]} {[%emt 00:00:14]} e6 {[%clk 01:31:11]}
{[%emt 00:00:09]} 3. g3 {[%clk 01:31:30]} {[%emt 00:00:11]} Nc6 {[%clk
01:31:35]} {[%emt 00:00:06]} 4. Bg2 {[%clk 01:31:56]} {[%emt 00:00:04]} Nf6
{[%clk 01:31:34]} {[%emt 00:00:31]} 5. Qe2 {[%clk 01:32:21]} {[%emt 00:00:05]}
Be7 {[%clk 01:25:21]} {[%emt 00:06:43]} 6. e5 {[%clk 01:27:42]} {[%emt
00:05:09]} Nd5 {[%clk 01:23:59]} {[%emt 00:01:52]} 7. O-O {[%clk 01:27:30]}
{[%emt 00:00:42]} d6 {[%clk 01:17:31]} {[%emt 00:06:59]} 8. exd6 {[%clk
01:21:57]} {[%emt 00:06:03]} Qxd6 {[%clk 01:13:59]} {[%emt 00:04:02]} 9. Rd1
{[%clk 01:19:00]} {[%emt 00:03:25]} Bf6 {[%clk 01:10:01]} {[%emt 00:04:29]} 10.
Nc3 {[%clk 01:17:53]} {[%emt 00:01:37]} Nxc3 {[%clk 01:00:24]} {[%emt
00:10:08]} 11. dxc3 {[%clk 01:13:44]} {[%emt 00:04:38]} Qe7 {[%clk 00:59:09]}
{[%emt 00:01:44]} 12. Nd2 {[%clk 01:12:40]} {[%emt 00:01:34]} Bd7 {[%clk
00:43:09]} {[%emt 00:16:31]} 13. Ne4 {[%clk 01:10:01]} {[%emt 00:03:09]} Be5
{[%clk 00:43:02]} {[%emt 00:00:38]} 14. Bg5 {[%clk 01:05:20]} {[%emt 00:05:10]}
f6 {[%clk 00:42:27]} {[%emt 00:01:06]} 15. Be3 {[%clk 01:03:26]} {[%emt
00:02:22]} b6 {[%clk 00:42:45]} {[%emt 00:00:13]} 16. f4 {[%clk 01:03:25]}
{[%emt 00:00:30]} Bc7 {[%clk 00:40:57]} {[%emt 00:02:19]} 17. Rxd7 {[%clk
00:58:52]} {[%emt 00:05:03]} Qxd7 {[%clk 00:34:34]} {[%emt 00:06:54]} 18. Rd1
{[%clk 00:58:49]} {[%emt 00:00:32]} Qe7 {[%clk 00:27:02]} {[%emt 00:08:02]} 19.
Nxc5 {[%clk 00:54:29]} {[%emt 00:04:50]} Rd8 {[%clk 00:22:32]} {[%emt
00:05:00]} 20. Bxc6+ {[%clk 00:52:19]} {[%emt 00:02:39]} Kf7 {[%clk 00:22:37]}
{[%emt 00:00:26]} 21. Ne4 {[%clk 00:41:12]} {[%emt 00:11:36]} Rxd1+ {[%clk
00:21:41]} {[%emt 00:01:26]} 22. Qxd1 {[%clk 00:41:33]} {[%emt 00:00:09]} Rd8
{[%clk 00:22:09]} {[%emt 00:00:04]} 23. Qe2 {[%clk 00:41:38]} {[%emt 00:00:24]}
Bb8 {[%clk 00:20:04]} {[%emt 00:02:36]} 24. Ba4 {[%clk 00:39:11]} {[%emt
00:02:56]} Qb7 {[%clk 00:17:39]} {[%emt 00:02:55]} 25. Nf2 {[%clk 00:38:19]}
{[%emt 00:01:22]} g6 {[%clk 00:16:52]} {[%emt 00:01:17]} 26. Bb3 {[%clk
00:38:38]} {[%emt 00:00:11]} Qd7 {[%clk 00:16:45]} {[%emt 00:00:38]} 27. Bd4
{[%clk 00:38:06]} {[%emt 00:01:02]} Ke7 {[%clk 00:15:22]} {[%emt 00:01:52]} 28.
Ng4 {[%clk 00:35:03]} {[%emt 00:03:32]} Rf8 {[%clk 00:14:56]} {[%emt 00:00:57]}
29. Ne3 {[%clk 00:29:45]} {[%emt 00:05:48]} Kf7 {[%clk 00:14:39]} {[%emt
00:00:47]} 30. f5 {[%clk 00:29:00]} {[%emt 00:01:14]} gxf5 {[%clk 00:14:26]}
{[%emt 00:00:44]} 31. Nxf5 {[%clk 00:29:20]} {[%emt 00:00:10]} Be5 {[%clk
00:12:15]} {[%emt 00:02:41]} 32. Qh5+ {[%clk 00:27:57]} {[%emt 00:01:53]} Kg8
{[%clk 00:11:53]} {[%emt 00:00:53]} 33. Qg4+ {[%clk 00:27:38]} {[%emt
00:00:48]} Kf7 {[%clk 00:12:12]} {[%emt 00:00:11]} 34. Qg7+ {[%clk 00:27:14]}
{[%emt 00:00:54]} Ke8 {[%clk 00:12:40]} {[%emt 00:00:02]} 35. Ba4 {[%clk
00:26:53]} {[%emt 00:00:51]} 1-0

[Event "NJSK 2022 Jeugd A"]
[Site "Almelo, Netherlands"]
[Date "2022.05.07"]
[Round "7.4"]
[White "Maters, Arthur"]
[Black "Pham, Khoi"]
[Result "0-1"]
[TimeControl "90min/40moves + 30min + 30sec/move"]
[WhiteElo "2048"]
[BlackElo "2291"]

1. e4 {[%clk 01:30:59]} {[%emt 00:00:01]} c5 {[%clk 01:30:57]} {[%emt
00:00:03]} 2. Nc3 {[%clk 01:31:25]} {[%emt 00:00:04]} Nc6 {[%clk 01:31:17]}
{[%emt 00:00:10]} 3. Nf3 {[%clk 01:31:09]} {[%emt 00:00:46]} e6 {[%clk
01:30:08]} {[%emt 00:01:39]} 4. d4 {[%clk 01:30:52]} {[%emt 00:00:46]} cxd4
{[%clk 01:30:33]} {[%emt 00:00:05]} 5. Nxd4 {[%clk 01:31:16]} {[%emt 00:00:06]}
Nf6 {[%clk 01:31:00]} {[%emt 00:00:04]} 6. g3 {[%clk 01:24:24]} {[%emt
00:07:23]} Bb4 {[%clk 01:27:01]} {[%emt 00:04:28]} 7. Bg2 {[%clk 01:23:37]}
{[%emt 00:01:17]} O-O {[%clk 01:26:38]} {[%emt 00:00:53]} 8. O-O {[%clk
01:23:20]} {[%emt 00:00:46]} d6 {[%clk 01:21:29]} {[%emt 00:05:40]} 9. h3
{[%clk 01:17:42]} {[%emt 00:06:07]} Nxd4 {[%clk 01:05:37]} {[%emt 00:16:23]} 10.
Qxd4 {[%clk 01:17:59]} {[%emt 00:00:12]} Bc5 {[%clk 01:06:01]} {[%emt
00:00:06]} 11. Qd3 {[%clk 01:16:40]} {[%emt 00:01:49]} Bd7 {[%clk 01:05:32]}
{[%emt 00:00:59]} 12. e5 {[%clk 01:01:06]} {[%emt 00:16:05]} dxe5 {[%clk
01:04:57]} {[%emt 00:01:05]} 13. Bxb7 {[%clk 01:01:19]} {[%emt 00:00:17]} Rb8
{[%clk 01:05:22]} {[%emt 00:00:05]} 14. Ne4 {[%clk 01:01:08]} {[%emt 00:00:41]}
Nxe4 {[%clk 01:02:48]} {[%emt 00:03:04]} 15. Bxe4 {[%clk 00:59:58]} {[%emt
00:01:40]} f5 {[%clk 01:02:45]} {[%emt 00:00:33]} 16. Bg2 {[%clk 00:57:31]}
{[%emt 00:02:56]} e4 {[%clk 01:01:56]} {[%emt 00:01:19]} 17. Qe2 {[%clk
00:55:14]} {[%emt 00:02:45]} Qf6 {[%clk 00:47:57]} {[%emt 00:14:32]} 18. Rb1
{[%clk 00:39:12]} {[%emt 00:16:31]} Bd4 {[%clk 00:44:27]} {[%emt 00:04:00]} 19.
Rd1 {[%clk 00:36:39]} {[%emt 00:03:03]} Bb5 {[%clk 00:40:28]} {[%emt 00:04:29]}
20. c4 {[%clk 00:35:35]} {[%emt 00:01:34]} Bc6 {[%clk 00:40:40]} {[%emt
00:00:18]} 21. Be3 {[%clk 00:24:59]} {[%emt 00:11:07]} e5 {[%clk 00:39:41]}
{[%emt 00:01:29]} 22. Qd2 {[%clk 00:22:15]} {[%emt 00:03:14]} Rbd8 {[%clk
00:37:54]} {[%emt 00:02:17]} 23. b4 {[%clk 00:17:16]} {[%emt 00:05:29]} Ba4
{[%clk 00:34:52]} {[%emt 00:03:31]} 24. Re1 {[%clk 00:17:40]} {[%emt 00:00:06]}
f4 {[%clk 00:34:30]} {[%emt 00:00:53]} 25. Bxd4 {[%clk 00:18:04]} {[%emt
00:00:05]} Rxd4 {[%clk 00:34:45]} {[%emt 00:00:15]} 26. Qb2 {[%clk 00:16:38]}
{[%emt 00:01:56]} Qg6 {[%clk 00:24:22]} {[%emt 00:10:53]} 27. Kh2 {[%clk
00:11:11]} {[%emt 00:05:57]} Rfd8 {[%clk 00:24:05]} {[%emt 00:00:47]} 28. Rbc1
{[%clk 00:07:23]} {[%emt 00:04:18]} Rd2 {[%clk 00:22:04]} {[%emt 00:02:31]} 29.
Qxe5 {[%clk 00:07:37]} {[%emt 00:00:16]} Rxf2 {[%clk 00:22:15]} {[%emt
00:00:19]} 30. Kh1 {[%clk 00:05:40]} {[%emt 00:02:27]} Qxg3 {[%clk 00:11:57]}
{[%emt 00:10:49]} 31. Qxe4 {[%clk 00:05:43]} {[%emt 00:00:27]} f3 {[%clk
00:11:46]} {[%emt 00:00:41]} 0-1

[Event "NJSK 2022 Jeugd A"]
[Site "Almelo, Netherlands"]
[Date "2022.05.07"]
[Round "7.5"]
[White "Klaren, Duncan"]
[Black "Boeren, Jurriaan"]
[Result "1-0"]
[TimeControl "90min/40moves + 30min + 30sec/move"]
[WhiteElo "1916"]
[BlackElo "1778"]

1. d4 {[%clk 01:30:57]} {[%emt 00:00:03]} d5 {[%clk 01:30:56]} {[%emt
00:00:05]} 2. Nf3 {[%clk 01:31:21]} {[%emt 00:00:06]} Nf6 {[%clk 01:31:21]}
{[%emt 00:00:04]} 3. Bf4 {[%clk 01:31:45]} {[%emt 00:00:07]} c5 {[%clk
01:30:37]} {[%emt 00:01:14]} 4. c3 {[%clk 01:31:44]} {[%emt 00:00:32]} Nc6
{[%clk 01:29:56]} {[%emt 00:01:10]} 5. e3 {[%clk 01:31:36]} {[%emt 00:00:38]}
Qb6 {[%clk 01:29:59]} {[%emt 00:00:26]} 6. Qb3 {[%clk 01:28:38]} {[%emt
00:03:28]} c4 {[%clk 01:28:29]} {[%emt 00:02:01]} 7. Qxb6 {[%clk 01:28:02]}
{[%emt 00:01:07]} axb6 {[%clk 01:28:54]} {[%emt 00:00:05]} 8. Na3 {[%clk
01:23:56]} {[%emt 00:04:35]} Ra5 {[%clk 01:18:13]} {[%emt 00:11:11]} 9. Bc7
{[%clk 01:12:04]} {[%emt 00:12:22]} e6 {[%clk 01:16:59]} {[%emt 00:01:43]} 10.
Bxb6 {[%clk 01:09:16]} {[%emt 00:03:18]} Ra6 {[%clk 01:16:18]} {[%emt
00:01:10]} 11. Bc5 {[%clk 01:08:51]} {[%emt 00:00:56]} Bxc5 {[%clk 01:16:39]}
{[%emt 00:00:09]} 12. dxc5 {[%clk 01:09:19]} {[%emt 00:00:02]} Ra5 {[%clk
01:09:14]} {[%emt 00:07:56]} 13. Nd4 {[%clk 01:05:15]} {[%emt 00:04:33]} Rxc5
{[%clk 01:02:28]} {[%emt 00:07:16]} 14. Ndb5 {[%clk 00:53:00]} {[%emt
00:12:44]} Ke7 {[%clk 00:55:42]} {[%emt 00:07:16]} 15. b4 {[%clk 00:45:53]}
{[%emt 00:07:38]} cxb3 {[%clk 00:55:57]} {[%emt 00:00:15]} 16. axb3 {[%clk
00:46:16]} {[%emt 00:00:07]} Ne5 {[%clk 00:55:19]} {[%emt 00:01:08]} 17. b4
{[%clk 00:38:37]} {[%emt 00:08:09]} Rc6 {[%clk 00:55:04]} {[%emt 00:00:45]} 18.
Nd4 {[%clk 00:38:48]} {[%emt 00:00:18]} Rb6 {[%clk 00:49:18]} {[%emt 00:06:16]}
19. f3 {[%clk 00:37:34]} {[%emt 00:01:44]} Bd7 {[%clk 00:47:02]} {[%emt
00:02:47]} 20. Be2 {[%clk 00:35:40]} {[%emt 00:02:23]} Rc8 {[%clk 00:45:28]}
{[%emt 00:02:05]} 21. Kd2 {[%clk 00:35:37]} {[%emt 00:00:33]} Nc4+ {[%clk
00:43:32]} {[%emt 00:02:25]} 22. Nxc4 {[%clk 00:32:12]} {[%emt 00:03:56]} dxc4
{[%clk 00:43:56]} {[%emt 00:00:07]} 23. Ra5 {[%clk 00:31:40]} {[%emt 00:01:01]}
Nd5 {[%clk 00:33:29]} {[%emt 00:10:57]} 24. Rha1 {[%clk 00:26:52]} {[%emt
00:05:17]} Kd6 {[%clk 00:28:46]} {[%emt 00:05:14]} 25. g3 {[%clk 00:23:35]}
{[%emt 00:03:47]} e5 {[%clk 00:27:42]} {[%emt 00:01:33]} 26. Nc2 {[%clk
00:23:31]} {[%emt 00:00:35]} f5 {[%clk 00:25:17]} {[%emt 00:02:54]} 27. Na3
{[%clk 00:21:41]} {[%emt 00:02:21]} f4 {[%clk 00:22:08]} {[%emt 00:03:39]} 28.
exf4 {[%clk 00:19:17]} {[%emt 00:02:54]} exf4 {[%clk 00:08:58]} {[%emt
00:13:39]} 29. Nxc4+ {[%clk 00:19:22]} {[%emt 00:00:25]} Rxc4 {[%clk 00:09:17]}
{[%emt 00:00:11]} 30. Bxc4 {[%clk 00:19:47]} {[%emt 00:00:06]} Ne3 {[%clk
00:09:33]} {[%emt 00:00:14]} 31. Bd3 {[%clk 00:19:51]} {[%emt 00:00:26]} Nd5
{[%clk 00:09:05]} {[%emt 00:00:58]} 32. c4 {[%clk 00:19:45]} {[%emt 00:00:36]}
1-0

[Event "NJSK 2022 Jeugd A"]
[Site "Almelo, Netherlands"]
[Date "2022.05.07"]
[Round "7.6"]
[White "Bakker, Tycho"]
[Black "Hubers, Daan"]
[Result "0-1"]
[TimeControl "90min/40moves + 30min + 30sec/move"]
[WhiteElo "1857"]
[BlackElo "1818"]

1. e4 {[%clk 01:30:46]} {[%emt 00:00:14]} Nf6 {[%clk 01:30:52]} {[%emt
00:00:08]} 2. e5 {[%clk 01:30:55]} {[%emt 00:00:21]} Ng8 {[%clk 01:31:17]}
{[%emt 00:00:05]} 3. d4 {[%clk 01:30:58]} {[%emt 00:00:26]} d6 {[%clk
01:31:29]} {[%emt 00:00:18]} 4. exd6 {[%clk 01:29:01]} {[%emt 00:02:27]} cxd6
{[%clk 01:31:50]} {[%emt 00:00:09]} 5. Bd3 {[%clk 01:29:22]} {[%emt 00:00:10]}
Nf6 {[%clk 01:29:58]} {[%emt 00:02:21]} 6. h3 {[%clk 01:29:41]} {[%emt
00:00:11]} e5 {[%clk 01:29:16]} {[%emt 00:01:13]} 7. dxe5 {[%clk 01:21:08]}
{[%emt 00:09:02]} dxe5 {[%clk 01:29:44]} {[%emt 00:00:03]} 8. Ne2 {[%clk
01:21:28]} {[%emt 00:00:09]} Nc6 {[%clk 01:21:11]} {[%emt 00:09:03]} 9. Nbc3
{[%clk 01:21:41]} {[%emt 00:00:18]} Be6 {[%clk 01:16:52]} {[%emt 00:04:49]} 10.
Bg5 {[%clk 01:20:05]} {[%emt 00:02:06]} Be7 {[%clk 01:16:16]} {[%emt 00:01:05]}
11. Ng3 {[%clk 01:15:55]} {[%emt 00:04:40]} h6 {[%clk 01:13:36]} {[%emt
00:03:11]} 12. Be3 {[%clk 01:11:32]} {[%emt 00:04:53]} a6 {[%clk 01:09:55]}
{[%emt 00:04:11]} 13. Nf5 {[%clk 01:09:06]} {[%emt 00:02:56]} Bxf5 {[%clk
01:07:05]} {[%emt 00:03:21]} 14. Bxf5 {[%clk 01:09:26]} {[%emt 00:00:10]} Qa5
{[%clk 00:57:24]} {[%emt 00:10:10]} 15. Bd3 {[%clk 00:55:15]} {[%emt 00:14:41]}
e4 {[%clk 00:44:58]} {[%emt 00:12:56]} 16. Bc4 {[%clk 00:53:32]} {[%emt
00:02:13]} Rd8 {[%clk 00:42:50]} {[%emt 00:02:38]} 17. Qe2 {[%clk 00:51:11]}
{[%emt 00:02:51]} Bb4 {[%clk 00:34:47]} {[%emt 00:08:34]} 18. O-O {[%clk
00:35:56]} {[%emt 00:15:45]} Bxc3 {[%clk 00:33:38]} {[%emt 00:01:39]} 19. bxc3
{[%clk 00:36:20]} {[%emt 00:00:05]} Qxc3 {[%clk 00:33:22]} {[%emt 00:00:46]} 20.
Rab1 {[%clk 00:34:43]} {[%emt 00:02:07]} Nd4 {[%clk 00:23:11]} {[%emt
00:10:41]} 21. Bxd4 {[%clk 00:35:08]} {[%emt 00:00:05]} Rxd4 {[%clk 00:23:24]}
{[%emt 00:00:18]} 22. Bb3 {[%clk 00:35:23]} {[%emt 00:00:15]} O-O {[%clk
00:23:28]} {[%emt 00:00:25]} 23. Rbd1 {[%clk 00:34:58]} {[%emt 00:00:55]} Rfd8
{[%clk 00:23:22]} {[%emt 00:00:36]} 24. Rxd4 {[%clk 00:34:24]} {[%emt
00:01:04]} Qxd4 {[%clk 00:23:34]} {[%emt 00:00:18]} 25. Re1 {[%clk 00:32:09]}
{[%emt 00:02:45]} Qc3 {[%clk 00:21:38]} {[%emt 00:02:25]} 26. Rd1 {[%clk
00:31:24]} {[%emt 00:01:17]} Rd4 {[%clk 00:20:58]} {[%emt 00:01:09]} 27. a4
{[%clk 00:25:26]} {[%emt 00:06:28]} Rxd1+ {[%clk 00:13:12]} {[%emt 00:08:17]}
28. Qxd1 {[%clk 00:25:51]} {[%emt 00:00:05]} e3 {[%clk 00:13:21]} {[%emt
00:00:20]} 29. fxe3 {[%clk 00:20:12]} {[%emt 00:06:09]} Qxe3+ {[%clk 00:13:42]}
{[%emt 00:00:09]} 30. Kh1 {[%clk 00:20:37]} {[%emt 00:00:06]} Ne4 {[%clk
00:12:40]} {[%emt 00:01:32]} 31. Qd5 {[%clk 00:17:25]} {[%emt 00:03:41]} Qe1+
{[%clk 00:08:52]} {[%emt 00:04:17]} 32. Kh2 {[%clk 00:17:53]} {[%emt 00:00:03]}
Qg3+ {[%clk 00:09:15]} {[%emt 00:00:07]} 33. Kg1 {[%clk 00:18:06]} {[%emt
00:00:17]} Qe1+ {[%clk 00:08:29]} {[%emt 00:01:16]} 34. Kh2 {[%clk 00:18:29]}
{[%emt 00:00:07]} Qg3+ {[%clk 00:08:56]} {[%emt 00:00:03]} 35. Kg1 {[%clk
00:18:47]} {[%emt 00:00:12]} Qf2+ {[%clk 00:04:21]} {[%emt 00:05:04]} 36. Kh2
{[%clk 00:17:46]} {[%emt 00:01:32]} Qf4+ {[%clk 00:01:01]} {[%emt 00:03:50]} 37.
Kg1 {[%clk 00:14:46]} {[%emt 00:03:31]} Ng3 {[%clk 00:01:23]} {[%emt 00:00:08]}
38. Qd8+ {[%clk 00:15:03]} {[%emt 00:00:13]} Kh7 {[%clk 00:01:47]} {[%emt
00:00:05]} 39. Qd3+ {[%clk 00:15:28]} {[%emt 00:00:05]} f5 {[%clk 00:01:42]}
{[%emt 00:00:36]} 40. Qc4 {[%clk 00:13:39]} {[%emt 00:02:18]} Qc1+ {[%clk
00:00:54]} {[%emt 00:01:17]} 41. Kf2 {[%clk 00:10:37]} {[%emt 00:03:33]} Ne4+
{[%clk 00:01:22]} {[%emt 00:00:03]} 42. Ke2 {[%clk 00:10:56]} {[%emt 00:00:10]}
Qd2+ {[%clk 00:01:43]} {[%emt 00:00:07]} 43. Kf3 {[%clk 00:11:22]} {[%emt
00:00:06]} Qf2# {[%clk 00:02:07]} {[%emt 00:00:06]} 0-1